Department family,Entity,Date,Expense type,Expense area,Supplier,Transaction number,Amount
Department of Health,Leicestershire Partnership NHS Trust,02/01/19,Rent,NSPCC Training Cente,NSPCC,117571,28054.56
Department of Health,Leicestershire Partnership NHS Trust,02/01/19,Rent,Work Force Transformation,NSPCC,117571,1232.99
Department of Health,Leicestershire Partnership NHS Trust,03/01/19,Electricity,"Beaumont Leys Health Centre (P94, LPT)",BRITISH GAS (ELECTRIC),670044068/963414174.,359.63
Department of Health,Leicestershire Partnership NHS Trust,03/01/19,Electricity,Bridge Park Plaza - First Floor (LPT),BRITISH GAS (ELECTRIC),670044068/963414174.,56.97
Department of Health,Leicestershire Partnership NHS Trust,03/01/19,Electricity,Bridge Park Road (Unit C18) (LPT),BRITISH GAS (ELECTRIC),670044068/963414174.,414.45
Department of Health,Leicestershire Partnership NHS Trust,03/01/19,Electricity,"Bridge Park Road - Units 2 and 3 (P148, LPT)",BRITISH GAS (ELECTRIC),670044068/963414174.,2056.04
Department of Health,Leicestershire Partnership NHS Trust,03/01/19,Electricity,"Coalville Health Centre (P121, LPT)",BRITISH GAS (ELECTRIC),670044068/963414174.,503.82
Department of Health,Leicestershire Partnership NHS Trust,03/01/19,Electricity,"DeMontfort House (P59, LPT)",BRITISH GAS (ELECTRIC),670044068/963414174.,8.36
Department of Health,Leicestershire Partnership NHS Trust,03/01/19,Electricity,Estates & Facilities Central,BRITISH GAS (ELECTRIC),670044068/963414174.,160.56
Department of Health,Leicestershire Partnership NHS Trust,03/01/19,Electricity,"Feilding Palmer Hospital (Lutterworth) (P131, LPT)",BRITISH GAS (ELECTRIC),670044068/963414174.,2375.48
Department of Health,Leicestershire Partnership NHS Trust,03/01/19,Electricity,"Frith Cottages 3 & 4 (P36, LPT)",BRITISH GAS (ELECTRIC),670044068/963414174.,403.00
Department of Health,Leicestershire Partnership NHS Trust,03/01/19,Electricity,"Hawthorne Centre - Coalville (P14, LPT)",BRITISH GAS (ELECTRIC),670044068/963414174.,724.69
Department of Health,Leicestershire Partnership NHS Trust,03/01/19,Electricity,"Hinckley and Bosworth Community Hospital (Sunnyside) (P133, LPT)",BRITISH GAS (ELECTRIC),670044068/963414174.,467.90
Department of Health,Leicestershire Partnership NHS Trust,03/01/19,Electricity,"Hynca Lodge (P33, LPT)",BRITISH GAS (ELECTRIC),670044068/963414174.,434.01
Department of Health,Leicestershire Partnership NHS Trust,03/01/19,Electricity,Mawson House (LPT),BRITISH GAS (ELECTRIC),670044068/963414174.,511.48
Department of Health,Leicestershire Partnership NHS Trust,03/01/19,Electricity,"Mett Centre (P49, LPT)",BRITISH GAS (ELECTRIC),670044068/963414174.,365.97
Department of Health,Leicestershire Partnership NHS Trust,03/01/19,Electricity,"Mill Lodge (P5, LPT)",BRITISH GAS (ELECTRIC),670044068/963414174.,-55221.72
Department of Health,Leicestershire Partnership NHS Trust,03/01/19,Electricity,Modular Training Building,BRITISH GAS (ELECTRIC),670044068/963414174.,396.30
Department of Health,Leicestershire Partnership NHS Trust,03/01/19,Electricity,"Paget House (P55, LPT)",BRITISH GAS (ELECTRIC),670044068/963414174.,113.51
Department of Health,Leicestershire Partnership NHS Trust,03/01/19,Electricity,"Prince Philip House (P96, LPT)",BRITISH GAS (ELECTRIC),670044068/963414174.,1545.83
Department of Health,Leicestershire Partnership NHS Trust,03/01/19,Electricity,Rothesay -  London Road 352A (LPT),BRITISH GAS (ELECTRIC),670044068/963414174.,380.51
Department of Health,Leicestershire Partnership NHS Trust,03/01/19,Electricity,"Rubicon Close 3 (P56, LPT)",BRITISH GAS (ELECTRIC),670044068/963414174.,432.33
Department of Health,Leicestershire Partnership NHS Trust,03/01/19,Electricity,"Rutland Memorial Hospital (P134, LPT)",BRITISH GAS (ELECTRIC),670044068/963414174.,2674.98
Department of Health,Leicestershire Partnership NHS Trust,03/01/19,Electricity,"Shepshed Health Centre (P123, LPT)",BRITISH GAS (ELECTRIC),670044068/963414174.,370.34
Department of Health,Leicestershire Partnership NHS Trust,03/01/19,Electricity,"Springfield Road Health Centre (P92, LPT)",BRITISH GAS (ELECTRIC),670044068/963414174.,978.13
Department of Health,Leicestershire Partnership NHS Trust,03/01/19,Electricity,"Stewart House (P61, LPT)",BRITISH GAS (ELECTRIC),670044068/963414174.,-64236.40
Department of Health,Leicestershire Partnership NHS Trust,03/01/19,Electricity,"Swithland House - London Road 352 (P44, LPT)",BRITISH GAS (ELECTRIC),670044068/963414174.,365.59
Department of Health,Leicestershire Partnership NHS Trust,03/01/19,Electricity,"Westcotes Group -Westcotes House (P78, LPT)",BRITISH GAS (ELECTRIC),670044068/963414174.,964.27
Department of Health,Leicestershire Partnership NHS Trust,03/01/19,Electricity,"Winstanley Drive Health Centre (P8, LPT)",BRITISH GAS (ELECTRIC),670044068/963414174.,472.41
Department of Health,Leicestershire Partnership NHS Trust,04/01/19,External Data Processing / Storage,Records & information Governance,C & V DATA MANAGEMENT SRV LTD,0066241,36818.70
Department of Health,Leicestershire Partnership NHS Trust,04/01/19,FP10'S,Adult City Drugs,NHS BUS SERVICES AUTHORITY,1000058326,12372.02
Department of Health,Leicestershire Partnership NHS Trust,04/01/19,FP10'S,Adult County Drugs,NHS BUS SERVICES AUTHORITY,1000058326,31934.60
Department of Health,Leicestershire Partnership NHS Trust,04/01/19,FP10'S,C B T,NHS BUS SERVICES AUTHORITY,1000058326,317.23
Department of Health,Leicestershire Partnership NHS Trust,04/01/19,FP10'S,CAMHS County Outpatients,NHS BUS SERVICES AUTHORITY,1000058326,14909.87
Department of Health,Leicestershire Partnership NHS Trust,04/01/19,FP10'S,Children Services Medical,NHS BUS SERVICES AUTHORITY,1000058326,7296.32
Department of Health,Leicestershire Partnership NHS Trust,04/01/19,FP10'S,Dementia Related Drugs and Investigations,NHS BUS SERVICES AUTHORITY,1000058326,6661.86
Department of Health,Leicestershire Partnership NHS Trust,04/01/19,FP10'S,Eating Disorders Outpatient Service,NHS BUS SERVICES AUTHORITY,1000058326,528.72
Department of Health,Leicestershire Partnership NHS Trust,04/01/19,FP10'S,Leicestershire Psych-oncology Service,NHS BUS SERVICES AUTHORITY,1000058326,528.72
Department of Health,Leicestershire Partnership NHS Trust,04/01/19,FP10'S,PIER Team - Early Intervention Services,NHS BUS SERVICES AUTHORITY,1000058326,25801.47
Department of Health,Leicestershire Partnership NHS Trust,04/01/19,FP10'S,Pharmacy,NHS BUS SERVICES AUTHORITY,1000058326,1163.18
Department of Health,Leicestershire Partnership NHS Trust,04/01/19,FP10'S,Snr Med Staff (Inc Med Reps),NHS BUS SERVICES AUTHORITY,1000058326,4229.75
Department of Health,Leicestershire Partnership NHS Trust,04/01/19,Unitary Payment,"The Agnes Unit (AKA Assessment and Treatment Centre) (P85, LPT)",ARDEN PARTNERSHIP (LEICESTER),SI0018,114431.10
Department of Health,Leicestershire Partnership NHS Trust,04/01/19,Payroll Deductions -Salary Sacrifice Cars Scheme,Balance Sheet Collection,TUSKER,12070,30728.58
Department of Health,Leicestershire Partnership NHS Trust,07/01/19,Crs_NHS_LT1y -Resus Inventory Supplied.,Balance Sheet Collection,NHS SUPPLY CHAIN (ST1450),1019195450,30368.80
Department of Health,Leicestershire Partnership NHS Trust,07/01/19,Services / Recharges from NHS Trusts,Inter Unit I & E Distribution,UHL NHS TRUST (RWE),L0220297,179992.55
Department of Health,Leicestershire Partnership NHS Trust,07/01/19,Occupational Health,HR Operations,UHL NHS TRUST (RWE),L0220291,26622.00
Department of Health,Leicestershire Partnership NHS Trust,07/01/19,Prep_ LT1y -Prepayments Lease Cars,Balance Sheet Collection,AUTOMOTIVE LEASING LTD,504777203,28001.97
Department of Health,Leicestershire Partnership NHS Trust,07/01/19,Trade_Drs_LT1y -Lease Cars Invoicing Contrl Ac.,Balance Sheet Collection,AUTOMOTIVE LEASING LTD,504777203,351.97
Department of Health,Leicestershire Partnership NHS Trust,07/01/19,EARLY RETIREMENT PENSIONS,Balance Sheet Collection,NHS BUS SERVICES AUTHORITY,2000000625,27329.94
Department of Health,Leicestershire Partnership NHS Trust,07/01/19,Payroll Deductions -Home Electronics 30 Jan 19,Balance Sheet Collection,SME HCI LTD,129339,33261.80
Department of Health,Leicestershire Partnership NHS Trust,08/01/19,CHP Estates Management,Belgrave Health Centre (CHP),COMM HLTH PARTNERSHIPS LTD,0060093994,9041.24
Department of Health,Leicestershire Partnership NHS Trust,08/01/19,CHP Estates Management,Merlyn Vaz Centre (CHP),COMM HLTH PARTNERSHIPS LTD,0060093994,60957.31
Department of Health,Leicestershire Partnership NHS Trust,08/01/19,CHP Estates Management,Westcotes Health Centre (CHP),COMM HLTH PARTNERSHIPS LTD,0060093994,11563.20
Department of Health,Leicestershire Partnership NHS Trust,08/01/19,NURSE - BAND 2 - AGENCY,Acacia (Willows),HCL NURSING,MAN29103,168.41
Department of Health,Leicestershire Partnership NHS Trust,08/01/19,Nurse - Band 6 -Agency,Adult City East CMHT - Merlyn Vaz,HCL NURSING,MAN29103,1747.03
Department of Health,Leicestershire Partnership NHS Trust,08/01/19,Nurse - Band 6 -Agency,Adult County Charnwood CMHT - Loughborough Base,HCL NURSING,MAN29103,1069.88
Department of Health,Leicestershire Partnership NHS Trust,08/01/19,NURSE - BAND 2 - AGENCY,Agnes Unit Management,HCL NURSING,MAN29103,836.21
Department of Health,Leicestershire Partnership NHS Trust,08/01/19,NURSE - BAND 5 - AGENCY,Agnes Unit Management,HCL NURSING,MAN29103,2506.90
Department of Health,Leicestershire Partnership NHS Trust,08/01/19,NURSE - BAND 2 - AGENCY,Ashby Ward (Bradgate Unit),HCL NURSING,MAN29103,180.21
Department of Health,Leicestershire Partnership NHS Trust,08/01/19,NURSE - BAND 2 - AGENCY,Aston Ward (Bradgate Unit),HCL NURSING,MAN29103,168.41
Department of Health,Leicestershire Partnership NHS Trust,08/01/19,NURSE - BAND 5 - AGENCY,Aston Ward (Bradgate Unit),HCL NURSING,MAN29103,2062.24
Department of Health,Leicestershire Partnership NHS Trust,08/01/19,NURSE - BAND 2 - AGENCY,Beaumont Ward - Bradgate Unit,HCL NURSING,MAN29103,717.93
Department of Health,Leicestershire Partnership NHS Trust,08/01/19,NURSE - BAND 5 - AGENCY,Beaumont Ward - Bradgate Unit,HCL NURSING,MAN29103,1383.95
Department of Health,Leicestershire Partnership NHS Trust,08/01/19,NURSE - BAND 2 - AGENCY,Belvoir Psychiatric Intensive Care Unit,HCL NURSING,MAN29103,6772.79
Department of Health,Leicestershire Partnership NHS Trust,08/01/19,NURSE - BAND 5 - AGENCY,Belvoir Psychiatric Intensive Care Unit,HCL NURSING,MAN29103,3782.10
Department of Health,Leicestershire Partnership NHS Trust,08/01/19,NURSE - BAND 5 - AGENCY,Bosworth Ward - Bradgate Unit,HCL NURSING,MAN29103,700.19
Department of Health,Leicestershire Partnership NHS Trust,08/01/19,Nurse - Band 6 -Agency,Crisis Resolution,HCL NURSING,MAN29103,3875.42
Department of Health,Leicestershire Partnership NHS Trust,08/01/19,Nurse - Band 6 -Agency,Deliberate Self Harm,HCL NURSING,MAN29103,4439.82
Department of Health,Leicestershire Partnership NHS Trust,08/01/19,NURSE - BAND 2 - AGENCY,Griffin Ward (HPC),HCL NURSING,MAN29103,294.06
Department of Health,Leicestershire Partnership NHS Trust,08/01/19,NURSE - BAND 5 - AGENCY,Griffin Ward (HPC),HCL NURSING,MAN29103,3788.37
Department of Health,Leicestershire Partnership NHS Trust,08/01/19,NURSE - BAND 2 - AGENCY,Heather Ward,HCL NURSING,MAN29103,963.87
Department of Health,Leicestershire Partnership NHS Trust,08/01/19,NURSE - BAND 5 - AGENCY,Heather Ward,HCL NURSING,MAN29103,4257.92
Department of Health,Leicestershire Partnership NHS Trust,08/01/19,Nurse - Band 6 -Agency,Liason Psychiatry Service,HCL NURSING,MAN29103,1069.88
Department of Health,Leicestershire Partnership NHS Trust,08/01/19,Nurse - Band 6 -Agency,Mental Health Triage Team,HCL NURSING,MAN29103,615.76
Department of Health,Leicestershire Partnership NHS Trust,08/01/19,NURSE - BAND 2 - AGENCY,Mill Lodge,HCL NURSING,MAN29103,313.07
Department of Health,Leicestershire Partnership NHS Trust,08/01/19,NURSE - BAND 5 - AGENCY,Mill Lodge,HCL NURSING,MAN29103,283.41
Department of Health,Leicestershire Partnership NHS Trust,08/01/19,NURSE - BAND 2 - AGENCY,Phoenix Ward (HPC),HCL NURSING,MAN29103,238.94
Department of Health,Leicestershire Partnership NHS Trust,08/01/19,NURSE - BAND 2 - AGENCY,Place Of Safety Assessment Unit,HCL NURSING,MAN29103,277.94
Department of Health,Leicestershire Partnership NHS Trust,08/01/19,NURSE - BAND 5 - AGENCY,Thornton Ward - Bradgate Unit,HCL NURSING,MAN29103,527.85
Department of Health,Leicestershire Partnership NHS Trust,08/01/19,NURSE - BAND 5 - AGENCY,Watermead Ward (Bradgate Unit),HCL NURSING,MAN29103,2297.48
Department of Health,Leicestershire Partnership NHS Trust,09/01/19,Payroll Deductions -Salary Sacrifice Cars Scheme,Balance Sheet Collection,TUSKER,5349,31032.52
Department of Health,Leicestershire Partnership NHS Trust,10/01/19,NURSE - BAND 2 - AGENCY,Beechwood Ward,HCL NURSING,MAN29044,535.68
Department of Health,Leicestershire Partnership NHS Trust,10/01/19,NURSE - BAND 5 - AGENCY,Beechwood Ward,HCL NURSING,MAN29044,398.28
Department of Health,Leicestershire Partnership NHS Trust,10/01/19,Nurse - Band 6 -Agency,City East CMHT MHSOP,HCL NURSING,MAN29044,836.93
Department of Health,Leicestershire Partnership NHS Trust,10/01/19,NURSE - BAND 5 - AGENCY,City ICS,HCL NURSING,MAN29044,4637.95
Department of Health,Leicestershire Partnership NHS Trust,10/01/19,NURSE - BAND 5 - AGENCY,City Planned Care - East,HCL NURSING,MAN29044,13518.22
Department of Health,Leicestershire Partnership NHS Trust,10/01/19,NURSE - BAND 5 - AGENCY,City Planned Care - West,HCL NURSING,MAN29044,1597.18
Department of Health,Leicestershire Partnership NHS Trust,10/01/19,Nurse - Band 6 -Agency,City West CMHT MHSOP,HCL NURSING,MAN29044,1069.88
Department of Health,Leicestershire Partnership NHS Trust,10/01/19,NURSE - BAND 2 - AGENCY,Clarendon Ward,HCL NURSING,MAN29044,1374.67
Department of Health,Leicestershire Partnership NHS Trust,10/01/19,NURSE - BAND 5 - AGENCY,Clarendon Ward,HCL NURSING,MAN29044,406.23
Department of Health,Leicestershire Partnership NHS Trust,10/01/19,NURSE - BAND 2 - AGENCY,Coalville Snibston Ward,HCL NURSING,MAN29044,642.80
Department of Health,Leicestershire Partnership NHS Trust,10/01/19,NURSE - BAND 2 - AGENCY,Coalville Ward 2,HCL NURSING,MAN29044,2160.92
Department of Health,Leicestershire Partnership NHS Trust,10/01/19,NURSE - BAND 5 - AGENCY,Coalville Ward 2,HCL NURSING,MAN29044,1355.27
Department of Health,Leicestershire Partnership NHS Trust,10/01/19,NURSE - BAND 2 - AGENCY,Coleman Ward,HCL NURSING,MAN29044,194.67
Department of Health,Leicestershire Partnership NHS Trust,10/01/19,NURSE - BAND 5 - AGENCY,Dalgliesh Ward,HCL NURSING,MAN29044,723.11
Department of Health,Leicestershire Partnership NHS Trust,10/01/19,NURSE - BAND 3 - AGENCY,East Planned Care - Blaby/Lutterworth,HCL NURSING,MAN29044,837.56
Department of Health,Leicestershire Partnership NHS Trust,10/01/19,NURSE - BAND 5 - AGENCY,"East Planned Care - Oadby,Wigston & Harborough",HCL NURSING,MAN29044,1419.05
Department of Health,Leicestershire Partnership NHS Trust,10/01/19,NURSE - BAND 5 - AGENCY,Evening Service,HCL NURSING,MAN29044,133.02
Department of Health,Leicestershire Partnership NHS Trust,10/01/19,NURSE - BAND 2 - AGENCY,Fielding Palmer Nursing,HCL NURSING,MAN29044,956.76
Department of Health,Leicestershire Partnership NHS Trust,10/01/19,NURSE - BAND 5 - AGENCY,Fielding Palmer Nursing,HCL NURSING,MAN29044,405.36
Department of Health,Leicestershire Partnership NHS Trust,10/01/19,NURSE - BAND 2 - AGENCY,Gwendolen Ward,HCL NURSING,MAN29044,113.85
Department of Health,Leicestershire Partnership NHS Trust,10/01/19,NURSE - BAND 2 - AGENCY,H&B Comm Hosp East Ward,HCL NURSING,MAN29044,1831.22
Department of Health,Leicestershire Partnership NHS Trust,10/01/19,NURSE - BAND 5 - AGENCY,H&B Comm Hosp East Ward,HCL NURSING,MAN29044,900.97
Department of Health,Leicestershire Partnership NHS Trust,10/01/19,NURSE - BAND 2 - AGENCY,H&B Comm Hosp North Ward,HCL NURSING,MAN29044,2524.49
Department of Health,Leicestershire Partnership NHS Trust,10/01/19,NURSE - BAND 5 - AGENCY,H&B Comm Hosp North Ward,HCL NURSING,MAN29044,270.51
Department of Health,Leicestershire Partnership NHS Trust,10/01/19,NURSE - BAND 2 - AGENCY,Kirby Ward,HCL NURSING,MAN29044,294.06
Department of Health,Leicestershire Partnership NHS Trust,10/01/19,NURSE - BAND 2 - AGENCY,Lough Swithland Ward,HCL NURSING,MAN29044,430.86
Department of Health,Leicestershire Partnership NHS Trust,10/01/19,NURSE - BAND 5 - AGENCY,Lough Swithland Ward,HCL NURSING,MAN29044,2389.11
Department of Health,Leicestershire Partnership NHS Trust,10/01/19,Nurse - Band 6 -Agency,MHSOP Integrated Care Team,HCL NURSING,MAN29044,2092.33
Department of Health,Leicestershire Partnership NHS Trust,10/01/19,NURSE - BAND 5 - AGENCY,North East ICS,HCL NURSING,MAN29044,1749.21
Department of Health,Leicestershire Partnership NHS Trust,10/01/19,NURSE - BAND 5 - AGENCY,North West ICS,HCL NURSING,MAN29044,876.24
Department of Health,Leicestershire Partnership NHS Trust,10/01/19,NURSE - BAND 2 - AGENCY,Rutland Ward Nursing,HCL NURSING,MAN29044,180.21
Department of Health,Leicestershire Partnership NHS Trust,10/01/19,NURSE - BAND 5 - AGENCY,South East ICS,HCL NURSING,MAN29044,4501.95
Department of Health,Leicestershire Partnership NHS Trust,10/01/19,NURSE - BAND 2 - AGENCY,St Lukes Stroke Ward,HCL NURSING,MAN29044,1284.47
Department of Health,Leicestershire Partnership NHS Trust,10/01/19,NURSE - BAND 5 - AGENCY,St Lukes Stroke Ward,HCL NURSING,MAN29044,386.06
Department of Health,Leicestershire Partnership NHS Trust,10/01/19,NURSE - BAND 5 - AGENCY,St Lukes Ward 3,HCL NURSING,MAN29044,2667.12
Department of Health,Leicestershire Partnership NHS Trust,10/01/19,NURSE - BAND 2 - AGENCY,Welford Ward,HCL NURSING,MAN29044,105.63
Department of Health,Leicestershire Partnership NHS Trust,10/01/19,NURSE - BAND 5 - AGENCY,West Planned Care  - Charnwood Hub,HCL NURSING,MAN29044,2380.30
Department of Health,Leicestershire Partnership NHS Trust,10/01/19,Network Costs - WAN Maint,HIS Infrastructure,VIRGIN MEDIA BUSINESS,262421-151,46565.94
Department of Health,Leicestershire Partnership NHS Trust,10/01/19,Computer License  Fees,Information Services,SERVELEC HEALTHCARE LTD,0070015606,185034.00
Department of Health,Leicestershire Partnership NHS Trust,14/01/19,Crs_NHS_LT1y -Resus Inventory Supplied.,Balance Sheet Collection,NHS SUPPLY CHAIN (ST1450),1019201128,55688.96
Department of Health,Leicestershire Partnership NHS Trust,14/01/19,Insurance Costs,Chief Executives Office,NHS LITIGATION AUTHORITY,SICX/00137775,85763.50
Department of Health,Leicestershire Partnership NHS Trust,14/01/19,SPECIALITY TRAINING 4-6 (ST 4-6),Medical Trainees,UHL NHS TRUST (RWE),L0220418,40122.16
Department of Health,Leicestershire Partnership NHS Trust,14/01/19,NURSE - BAND 2 - AGENCY,Beechwood Ward,HCL NURSING,MAN29008,277.94
Department of Health,Leicestershire Partnership NHS Trust,14/01/19,NURSE - BAND 5 - AGENCY,Beechwood Ward,HCL NURSING,MAN29008,511.20
Department of Health,Leicestershire Partnership NHS Trust,14/01/19,Nurse - Band 6 -Agency,City East CMHT MHSOP,HCL NURSING,MAN29008,1046.16
Department of Health,Leicestershire Partnership NHS Trust,14/01/19,NURSE - BAND 5 - AGENCY,City ICS,HCL NURSING,MAN29008,2458.64
Department of Health,Leicestershire Partnership NHS Trust,14/01/19,NURSE - BAND 5 - AGENCY,City Planned Care - East,HCL NURSING,MAN29008,11943.27
Department of Health,Leicestershire Partnership NHS Trust,14/01/19,NURSE - BAND 5 - AGENCY,City Planned Care - West,HCL NURSING,MAN29008,2432.83
Department of Health,Leicestershire Partnership NHS Trust,14/01/19,Nurse - Band 6 -Agency,City West CMHT MHSOP,HCL NURSING,MAN29008,1014.08
Department of Health,Leicestershire Partnership NHS Trust,14/01/19,NURSE - BAND 2 - AGENCY,Clarendon Ward,HCL NURSING,MAN29008,702.16
Department of Health,Leicestershire Partnership NHS Trust,14/01/19,NURSE - BAND 2 - AGENCY,Coalville Snibston Ward,HCL NURSING,MAN29008,819.74
Department of Health,Leicestershire Partnership NHS Trust,14/01/19,NURSE - BAND 5 - AGENCY,Coalville Snibston Ward,HCL NURSING,MAN29008,274.96
Department of Health,Leicestershire Partnership NHS Trust,14/01/19,NURSE - BAND 2 - AGENCY,Coalville Ward 2,HCL NURSING,MAN29008,1038.29
Department of Health,Leicestershire Partnership NHS Trust,14/01/19,NURSE - BAND 2 - AGENCY,Coleman Ward,HCL NURSING,MAN29008,182.01
Department of Health,Leicestershire Partnership NHS Trust,14/01/19,NURSE - BAND 2 - AGENCY,Dalgliesh Ward,HCL NURSING,MAN29008,713.47
Department of Health,Leicestershire Partnership NHS Trust,14/01/19,NURSE - BAND 5 - AGENCY,Dalgliesh Ward,HCL NURSING,MAN29008,500.05
Department of Health,Leicestershire Partnership NHS Trust,14/01/19,NURSE - BAND 3 - AGENCY,East Planned Care - Blaby/Lutterworth,HCL NURSING,MAN29008,843.76
Department of Health,Leicestershire Partnership NHS Trust,14/01/19,NURSE - BAND 5 - AGENCY,"East Planned Care - Oadby,Wigston & Harborough",HCL NURSING,MAN29008,1868.94
Department of Health,Leicestershire Partnership NHS Trust,14/01/19,NURSE - BAND 2 - AGENCY,Fielding Palmer Nursing,HCL NURSING,MAN29008,448.97
Department of Health,Leicestershire Partnership NHS Trust,14/01/19,NURSE - BAND 5 - AGENCY,Fielding Palmer Nursing,HCL NURSING,MAN29008,971.46
Department of Health,Leicestershire Partnership NHS Trust,14/01/19,NURSE - BAND 2 - AGENCY,Gwendolen Ward,HCL NURSING,MAN29008,113.87
Department of Health,Leicestershire Partnership NHS Trust,14/01/19,NURSE - BAND 2 - AGENCY,H&B Comm Hosp East Ward,HCL NURSING,MAN29008,2480.76
Department of Health,Leicestershire Partnership NHS Trust,14/01/19,NURSE - BAND 2 - AGENCY,H&B Comm Hosp North Ward,HCL NURSING,MAN29008,144.97
Department of Health,Leicestershire Partnership NHS Trust,14/01/19,NURSE - BAND 5 - AGENCY,H&B Comm Hosp North Ward,HCL NURSING,MAN29008,877.32
Department of Health,Leicestershire Partnership NHS Trust,14/01/19,NURSE - BAND 2 - AGENCY,Kirby Ward,HCL NURSING,MAN29008,405.75
Department of Health,Leicestershire Partnership NHS Trust,14/01/19,NURSE - BAND 5 - AGENCY,Kirby Ward,HCL NURSING,MAN29008,302.58
Department of Health,Leicestershire Partnership NHS Trust,14/01/19,NURSE - BAND 5 - AGENCY,Lough Swithland Ward,HCL NURSING,MAN29008,3023.40
Department of Health,Leicestershire Partnership NHS Trust,14/01/19,NURSE - BAND 5 - AGENCY,North West ICS,HCL NURSING,MAN29008,733.33
Department of Health,Leicestershire Partnership NHS Trust,14/01/19,NURSE - BAND 2 - AGENCY,Rutland Ward Nursing,HCL NURSING,MAN29008,286.98
Department of Health,Leicestershire Partnership NHS Trust,14/01/19,NURSE - BAND 5 - AGENCY,South East ICS,HCL NURSING,MAN29008,2786.62
Department of Health,Leicestershire Partnership NHS Trust,14/01/19,NURSE - BAND 2 - AGENCY,St Lukes Stroke Ward,HCL NURSING,MAN29008,400.79
Department of Health,Leicestershire Partnership NHS Trust,14/01/19,NURSE - BAND 5 - AGENCY,St Lukes Ward 3,HCL NURSING,MAN29008,3110.68
Department of Health,Leicestershire Partnership NHS Trust,14/01/19,NURSE - BAND 2 - AGENCY,Welford Ward,HCL NURSING,MAN29008,408.66
Department of Health,Leicestershire Partnership NHS Trust,14/01/19,NURSE - BAND 5 - AGENCY,Welford Ward,HCL NURSING,MAN29008,302.58
Department of Health,Leicestershire Partnership NHS Trust,14/01/19,NURSE - BAND 5 - AGENCY,West Planned Care  - Charnwood Hub,HCL NURSING,MAN29008,4120.82
Department of Health,Leicestershire Partnership NHS Trust,14/01/19,NURSE - BAND 2 - AGENCY,Beechwood Ward,HCL NURSING,MAN29104,942.33
Department of Health,Leicestershire Partnership NHS Trust,14/01/19,NURSE - BAND 5 - AGENCY,Beechwood Ward,HCL NURSING,MAN29104,726.02
Department of Health,Leicestershire Partnership NHS Trust,14/01/19,Nurse - Band 6 -Agency,City East CMHT MHSOP,HCL NURSING,MAN29104,1046.16
Department of Health,Leicestershire Partnership NHS Trust,14/01/19,NURSE - BAND 5 - AGENCY,City ICS,HCL NURSING,MAN29104,3486.36
Department of Health,Leicestershire Partnership NHS Trust,14/01/19,NURSE - BAND 5 - AGENCY,City Planned Care - East,HCL NURSING,MAN29104,20338.41
Department of Health,Leicestershire Partnership NHS Trust,14/01/19,NURSE - BAND 5 - AGENCY,City Planned Care - West,HCL NURSING,MAN29104,3409.36
Department of Health,Leicestershire Partnership NHS Trust,14/01/19,Nurse - Band 6 -Agency,City West CMHT MHSOP,HCL NURSING,MAN29104,1711.80
Department of Health,Leicestershire Partnership NHS Trust,14/01/19,NURSE - BAND 2 - AGENCY,Clarendon Ward,HCL NURSING,MAN29104,1470.69
Department of Health,Leicestershire Partnership NHS Trust,14/01/19,NURSE - BAND 5 - AGENCY,Clarendon Ward,HCL NURSING,MAN29104,1666.03
Department of Health,Leicestershire Partnership NHS Trust,14/01/19,NURSE - BAND 2 - AGENCY,Coalville Snibston Ward,HCL NURSING,MAN29104,2114.01
Department of Health,Leicestershire Partnership NHS Trust,14/01/19,NURSE - BAND 5 - AGENCY,Coalville Snibston Ward,HCL NURSING,MAN29104,386.06
Department of Health,Leicestershire Partnership NHS Trust,14/01/19,NURSE - BAND 2 - AGENCY,Coalville Ward 2,HCL NURSING,MAN29104,1959.19
Department of Health,Leicestershire Partnership NHS Trust,14/01/19,NURSE - BAND 5 - AGENCY,Coalville Ward 2,HCL NURSING,MAN29104,393.35
Department of Health,Leicestershire Partnership NHS Trust,14/01/19,NURSE - BAND 2 - AGENCY,Coleman Ward,HCL NURSING,MAN29104,1207.84
Department of Health,Leicestershire Partnership NHS Trust,14/01/19,NURSE - BAND 5 - AGENCY,Dalgliesh Ward,HCL NURSING,MAN29104,1415.87
Department of Health,Leicestershire Partnership NHS Trust,14/01/19,NURSE - BAND 3 - AGENCY,East Planned Care - Blaby/Lutterworth,HCL NURSING,MAN29104,817.81
Department of Health,Leicestershire Partnership NHS Trust,14/01/19,NURSE - BAND 5 - AGENCY,"East Planned Care - Oadby,Wigston & Harborough",HCL NURSING,MAN29104,1855.12
Department of Health,Leicestershire Partnership NHS Trust,14/01/19,NURSE - BAND 5 - AGENCY,Evening Service,HCL NURSING,MAN29104,2594.56
Department of Health,Leicestershire Partnership NHS Trust,14/01/19,NURSE - BAND 2 - AGENCY,Fielding Palmer Nursing,HCL NURSING,MAN29104,213.54
Department of Health,Leicestershire Partnership NHS Trust,14/01/19,NURSE - BAND 2 - AGENCY,Gwendolen Ward,HCL NURSING,MAN29104,1417.98
Department of Health,Leicestershire Partnership NHS Trust,14/01/19,NURSE - BAND 5 - AGENCY,Gwendolen Ward,HCL NURSING,MAN29104,302.58
Department of Health,Leicestershire Partnership NHS Trust,14/01/19,NURSE - BAND 2 - AGENCY,H&B Comm Hosp East Ward,HCL NURSING,MAN29104,1937.88
Department of Health,Leicestershire Partnership NHS Trust,14/01/19,NURSE - BAND 5 - AGENCY,H&B Comm Hosp East Ward,HCL NURSING,MAN29104,224.79
Department of Health,Leicestershire Partnership NHS Trust,14/01/19,NURSE - BAND 2 - AGENCY,H&B Comm Hosp North Ward,HCL NURSING,MAN29104,1676.45
Department of Health,Leicestershire Partnership NHS Trust,14/01/19,NURSE - BAND 5 - AGENCY,H&B Comm Hosp North Ward,HCL NURSING,MAN29104,779.41
Department of Health,Leicestershire Partnership NHS Trust,14/01/19,NURSE - BAND 2 - AGENCY,Kirby Ward,HCL NURSING,MAN29104,508.99
Department of Health,Leicestershire Partnership NHS Trust,14/01/19,NURSE - BAND 5 - AGENCY,Kirby Ward,HCL NURSING,MAN29104,888.10
Department of Health,Leicestershire Partnership NHS Trust,14/01/19,NURSE - BAND 2 - AGENCY,Lough Swithland Ward,HCL NURSING,MAN29104,489.88
Department of Health,Leicestershire Partnership NHS Trust,14/01/19,NURSE - BAND 5 - AGENCY,Lough Swithland Ward,HCL NURSING,MAN29104,414.27
Department of Health,Leicestershire Partnership NHS Trust,14/01/19,Nurse - Band 6 -Agency,MHSOP Integrated Care Team,HCL NURSING,MAN29104,1046.16
Department of Health,Leicestershire Partnership NHS Trust,14/01/19,NURSE - BAND 5 - AGENCY,North East ICS,HCL NURSING,MAN29104,1684.23
Department of Health,Leicestershire Partnership NHS Trust,14/01/19,NURSE - BAND 5 - AGENCY,North West ICS,HCL NURSING,MAN29104,2362.57
Department of Health,Leicestershire Partnership NHS Trust,14/01/19,NURSE - BAND 2 - AGENCY,Rutland Ward Nursing,HCL NURSING,MAN29104,291.27
Department of Health,Leicestershire Partnership NHS Trust,14/01/19,NURSE - BAND 5 - AGENCY,Rutland Ward Nursing,HCL NURSING,MAN29104,308.87
Department of Health,Leicestershire Partnership NHS Trust,14/01/19,NURSE - BAND 5 - AGENCY,South East ICS,HCL NURSING,MAN29104,1308.42
Department of Health,Leicestershire Partnership NHS Trust,14/01/19,NURSE - BAND 2 - AGENCY,St Lukes Stroke Ward,HCL NURSING,MAN29104,2545.49
Department of Health,Leicestershire Partnership NHS Trust,14/01/19,NURSE - BAND 5 - AGENCY,St Lukes Stroke Ward,HCL NURSING,MAN29104,1093.54
Department of Health,Leicestershire Partnership NHS Trust,14/01/19,NURSE - BAND 2 - AGENCY,St Lukes Ward 3,HCL NURSING,MAN29104,473.90
Department of Health,Leicestershire Partnership NHS Trust,14/01/19,NURSE - BAND 5 - AGENCY,St Lukes Ward 3,HCL NURSING,MAN29104,2302.22
Department of Health,Leicestershire Partnership NHS Trust,14/01/19,NURSE - BAND 5 - AGENCY,West Planned Care  - Charnwood Hub,HCL NURSING,MAN29104,1351.02
Department of Health,Leicestershire Partnership NHS Trust,14/01/19,Computer License  Fees,Finance Department,SOFTCAT PLC,INV02109858,41289.60
Department of Health,Leicestershire Partnership NHS Trust,15/01/19,Payroll Deductions - Kiddi Vouchers,Balance Sheet Collection,WIDER PLAN LTD,4417284,42725.89
Department of Health,Leicestershire Partnership NHS Trust,15/01/19,Landline Telephone Rental / Calls,"Beaumont Leys Health Centre (P94, LPT)",VIRGIN MEDIA BUSINESS,853083001/004/1218,397.01
Department of Health,Leicestershire Partnership NHS Trust,15/01/19,Landline Telephone Rental / Calls,Belgrave Health Centre (CHP),VIRGIN MEDIA BUSINESS,853083001/004/1218,374.63
Department of Health,Leicestershire Partnership NHS Trust,15/01/19,Landline Telephone Rental / Calls,"Bennion Centre (including Forest Grange Day Unit) (P8, LPT)",VIRGIN MEDIA BUSINESS,853083001/004/1218,7.74
Department of Health,Leicestershire Partnership NHS Trust,15/01/19,Landline Telephone Rental / Calls,"Bradgate Unit (including Glenvale day Unit) (P7, LPT)",VIRGIN MEDIA BUSINESS,853083001/004/1218,7365.08
Department of Health,Leicestershire Partnership NHS Trust,15/01/19,Landline Telephone Rental / Calls,Braunstone Health and Social Care Centre (Part) (PROPCO),VIRGIN MEDIA BUSINESS,853083001/004/1218,1690.70
Department of Health,Leicestershire Partnership NHS Trust,15/01/19,Landline Telephone Rental / Calls,Bridge Park Plaza - First Floor (LPT),VIRGIN MEDIA BUSINESS,853083001/004/1218,4152.88
Department of Health,Leicestershire Partnership NHS Trust,15/01/19,Landline Telephone Rental / Calls,"Coalville Community Hospital (P138, LPT)",VIRGIN MEDIA BUSINESS,853083001/004/1218,1281.45
Department of Health,Leicestershire Partnership NHS Trust,15/01/19,Landline Telephone Rental / Calls,"Coalville Health Centre (P121, LPT)",VIRGIN MEDIA BUSINESS,853083001/004/1218,351.96
Department of Health,Leicestershire Partnership NHS Trust,15/01/19,Landline Telephone Rental / Calls,County Hall,VIRGIN MEDIA BUSINESS,853083001/004/1218,1575.31
Department of Health,Leicestershire Partnership NHS Trust,15/01/19,Landline Telephone Rental / Calls,Estates & Facilities Central,VIRGIN MEDIA BUSINESS,853083001/004/1218,3930.11
Department of Health,Leicestershire Partnership NHS Trust,15/01/19,Landline Telephone Rental / Calls,"Evington Centre (P6, LPT)",VIRGIN MEDIA BUSINESS,853083001/004/1218,1543.17
Department of Health,Leicestershire Partnership NHS Trust,15/01/19,Landline Telephone Rental / Calls,HIS,VIRGIN MEDIA BUSINESS,853083001/004/1218,2848.54
Department of Health,Leicestershire Partnership NHS Trust,15/01/19,Landline Telephone Rental / Calls,"Hawthorne Centre - Coalville (P14, LPT)",VIRGIN MEDIA BUSINESS,853083001/004/1218,517.21
Department of Health,Leicestershire Partnership NHS Trust,15/01/19,Landline Telephone Rental / Calls,Hinckley & District Hospital (PROPCO),VIRGIN MEDIA BUSINESS,853083001/004/1218,1350.57
Department of Health,Leicestershire Partnership NHS Trust,15/01/19,Landline Telephone Rental / Calls,"Hinckley and Bosworth Community Hospital (Sunnyside) (P133, LPT)",VIRGIN MEDIA BUSINESS,853083001/004/1218,1023.67
Department of Health,Leicestershire Partnership NHS Trust,15/01/19,Landline Telephone Rental / Calls,Hood Park Leisure Centre Clinic,VIRGIN MEDIA BUSINESS,853083001/004/1218,79.30
Department of Health,Leicestershire Partnership NHS Trust,15/01/19,Landline Telephone Rental / Calls,"Hynca Lodge (P33, LPT)",VIRGIN MEDIA BUSINESS,853083001/004/1218,363.47
Department of Health,Leicestershire Partnership NHS Trust,15/01/19,Landline Telephone Rental / Calls,"Legion House, Ashby",VIRGIN MEDIA BUSINESS,853083001/004/1218,54.10
Department of Health,Leicestershire Partnership NHS Trust,15/01/19,Landline Telephone Rental / Calls,Loughborough Health Centre (PROPCO),VIRGIN MEDIA BUSINESS,853083001/004/1218,8.18
Department of Health,Leicestershire Partnership NHS Trust,15/01/19,Landline Telephone Rental / Calls,"Loughborough Hospital (P136, LPT)",VIRGIN MEDIA BUSINESS,853083001/004/1218,4322.54
Department of Health,Leicestershire Partnership NHS Trust,15/01/19,Landline Telephone Rental / Calls,Mawson House (LPT),VIRGIN MEDIA BUSINESS,853083001/004/1218,463.63
Department of Health,Leicestershire Partnership NHS Trust,15/01/19,Landline Telephone Rental / Calls,Melbourne Centre (Pt Grnd flr) (PROPCO),VIRGIN MEDIA BUSINESS,853083001/004/1218,6.45
Department of Health,Leicestershire Partnership NHS Trust,15/01/19,Landline Telephone Rental / Calls,Melton Mowbray Hospital (previously St. Mary's) (PROPCO),VIRGIN MEDIA BUSINESS,853083001/004/1218,217.83
Department of Health,Leicestershire Partnership NHS Trust,15/01/19,Landline Telephone Rental / Calls,Merlyn Vaz Centre (CHP),VIRGIN MEDIA BUSINESS,853083001/004/1218,2061.04
Department of Health,Leicestershire Partnership NHS Trust,15/01/19,Landline Telephone Rental / Calls,"Mett Centre (P49, LPT)",VIRGIN MEDIA BUSINESS,853083001/004/1218,88.60
Department of Health,Leicestershire Partnership NHS Trust,15/01/19,Landline Telephone Rental / Calls,NSPCC Training Cente,VIRGIN MEDIA BUSINESS,853083001/004/1218,169.10
Department of Health,Leicestershire Partnership NHS Trust,15/01/19,Landline Telephone Rental / Calls,New Parks Health Centre (PROPCO),VIRGIN MEDIA BUSINESS,853083001/004/1218,2289.82
Department of Health,Leicestershire Partnership NHS Trust,15/01/19,Landline Telephone Rental / Calls,"OSL House (P54, LPT)",VIRGIN MEDIA BUSINESS,853083001/004/1218,2951.01
Department of Health,Leicestershire Partnership NHS Trust,15/01/19,Landline Telephone Rental / Calls,"Orchard Resource Centre (P15, LPT)",VIRGIN MEDIA BUSINESS,853083001/004/1218,488.93
Department of Health,Leicestershire Partnership NHS Trust,15/01/19,Landline Telephone Rental / Calls,Pasley Road Health Centre (PROPCO),VIRGIN MEDIA BUSINESS,853083001/004/1218,247.78
Department of Health,Leicestershire Partnership NHS Trust,15/01/19,Landline Telephone Rental / Calls,"Prince Philip House (P96, LPT)",VIRGIN MEDIA BUSINESS,853083001/004/1218,1649.13
Department of Health,Leicestershire Partnership NHS Trust,15/01/19,Landline Telephone Rental / Calls,Rushey Mead Health Centre (PROPCO),VIRGIN MEDIA BUSINESS,853083001/004/1218,213.65
Department of Health,Leicestershire Partnership NHS Trust,15/01/19,Landline Telephone Rental / Calls,"Shepshed Health Centre (P123, LPT)",VIRGIN MEDIA BUSINESS,853083001/004/1218,9.67
Department of Health,Leicestershire Partnership NHS Trust,15/01/19,Landline Telephone Rental / Calls,"Springfield Road Health Centre (P92, LPT)",VIRGIN MEDIA BUSINESS,853083001/004/1218,374.65
Department of Health,Leicestershire Partnership NHS Trust,15/01/19,Landline Telephone Rental / Calls,St Johns House (1st Floor) (PROPCO),VIRGIN MEDIA BUSINESS,853083001/004/1218,1522.95
Department of Health,Leicestershire Partnership NHS Trust,15/01/19,Landline Telephone Rental / Calls,St Peters Primary Care Centre (CHP),VIRGIN MEDIA BUSINESS,853083001/004/1218,2679.97
Department of Health,Leicestershire Partnership NHS Trust,15/01/19,Landline Telephone Rental / Calls,"Stewart House (P61, LPT)",VIRGIN MEDIA BUSINESS,853083001/004/1218,7.74
Department of Health,Leicestershire Partnership NHS Trust,15/01/19,Landline Telephone Rental / Calls,"Swithland House - London Road 352 (P44, LPT)",VIRGIN MEDIA BUSINESS,853083001/004/1218,367.46
Department of Health,Leicestershire Partnership NHS Trust,15/01/19,Landline Telephone Rental / Calls,"The Cedars (P19, LPT)",VIRGIN MEDIA BUSINESS,853083001/004/1218,615.97
Department of Health,Leicestershire Partnership NHS Trust,15/01/19,Landline Telephone Rental / Calls,"The Willows - Cordelia Close (P22, LPT)",VIRGIN MEDIA BUSINESS,853083001/004/1218,420.27
Department of Health,Leicestershire Partnership NHS Trust,15/01/19,Landline Telephone Rental / Calls,Uppingham Road Health Centre (PROPCO),VIRGIN MEDIA BUSINESS,853083001/004/1218,238.20
Department of Health,Leicestershire Partnership NHS Trust,15/01/19,Landline Telephone Rental / Calls,"Valentine Centre (P3, LPT)",VIRGIN MEDIA BUSINESS,853083001/004/1218,1695.72
Department of Health,Leicestershire Partnership NHS Trust,15/01/19,Landline Telephone Rental / Calls,Warren Park Way 25 (PROPCO),VIRGIN MEDIA BUSINESS,853083001/004/1218,920.32
Department of Health,Leicestershire Partnership NHS Trust,15/01/19,Landline Telephone Rental / Calls,"Westcotes Group -Westcotes House (P78, LPT)",VIRGIN MEDIA BUSINESS,853083001/004/1218,1510.91
Department of Health,Leicestershire Partnership NHS Trust,15/01/19,Landline Telephone Rental / Calls,Westcotes Health Centre (CHP),VIRGIN MEDIA BUSINESS,853083001/004/1218,758.95
Department of Health,Leicestershire Partnership NHS Trust,15/01/19,Landline Telephone Rental / Calls,"Winstanley Drive Health Centre (P8, LPT)",VIRGIN MEDIA BUSINESS,853083001/004/1218,418.81
Department of Health,Leicestershire Partnership NHS Trust,15/01/19,Rent,County Hall,LEIC COUNTY COUNCIL,6279715,34488.50
Department of Health,Leicestershire Partnership NHS Trust,16/01/19,NURSE - BAND 2 - AGENCY,Beechwood Ward,HCL NURSING,MAN29177,442.53
Department of Health,Leicestershire Partnership NHS Trust,16/01/19,NURSE - BAND 5 - AGENCY,Beechwood Ward,HCL NURSING,MAN29177,1222.22
Department of Health,Leicestershire Partnership NHS Trust,16/01/19,Nurse - Band 6 -Agency,City East CMHT MHSOP,HCL NURSING,MAN29177,1673.86
Department of Health,Leicestershire Partnership NHS Trust,16/01/19,NURSE - BAND 5 - AGENCY,City ICS,HCL NURSING,MAN29177,3977.20
Department of Health,Leicestershire Partnership NHS Trust,16/01/19,NURSE - BAND 5 - AGENCY,City Planned Care - East,HCL NURSING,MAN29177,14352.69
Department of Health,Leicestershire Partnership NHS Trust,16/01/19,NURSE - BAND 5 - AGENCY,City Planned Care - West,HCL NURSING,MAN29177,2689.10
Department of Health,Leicestershire Partnership NHS Trust,16/01/19,Nurse - Band 6 -Agency,City West CMHT MHSOP,HCL NURSING,MAN29177,855.90
Department of Health,Leicestershire Partnership NHS Trust,16/01/19,NURSE - BAND 2 - AGENCY,Clarendon Ward,HCL NURSING,MAN29177,1180.47
Department of Health,Leicestershire Partnership NHS Trust,16/01/19,NURSE - BAND 5 - AGENCY,Clarendon Ward,HCL NURSING,MAN29177,386.13
Department of Health,Leicestershire Partnership NHS Trust,16/01/19,NURSE - BAND 2 - AGENCY,Coalville Snibston Ward,HCL NURSING,MAN29177,956.79
Department of Health,Leicestershire Partnership NHS Trust,16/01/19,NURSE - BAND 2 - AGENCY,Coalville Ward 2,HCL NURSING,MAN29177,2174.97
Department of Health,Leicestershire Partnership NHS Trust,16/01/19,NURSE - BAND 5 - AGENCY,Coleman Ward,HCL NURSING,MAN29177,965.01
Department of Health,Leicestershire Partnership NHS Trust,16/01/19,NURSE - BAND 5 - AGENCY,Dalgliesh Ward,HCL NURSING,MAN29177,1363.59
Department of Health,Leicestershire Partnership NHS Trust,16/01/19,NURSE - BAND 5 - AGENCY,"East Planned Care - Melton,Syston,Rutland",HCL NURSING,MAN29177,276.65
Department of Health,Leicestershire Partnership NHS Trust,16/01/19,NURSE - BAND 5 - AGENCY,"East Planned Care - Oadby,Wigston & Harborough",HCL NURSING,MAN29177,801.22
Department of Health,Leicestershire Partnership NHS Trust,16/01/19,NURSE - BAND 5 - AGENCY,Evening Service,HCL NURSING,MAN29177,1247.96
Department of Health,Leicestershire Partnership NHS Trust,16/01/19,NURSE - BAND 2 - AGENCY,Gwendolen Ward,HCL NURSING,MAN29177,2209.76
Department of Health,Leicestershire Partnership NHS Trust,16/01/19,NURSE - BAND 2 - AGENCY,H&B Comm Hosp East Ward,HCL NURSING,MAN29177,1108.62
Department of Health,Leicestershire Partnership NHS Trust,16/01/19,NURSE - BAND 5 - AGENCY,H&B Comm Hosp East Ward,HCL NURSING,MAN29177,600.67
Department of Health,Leicestershire Partnership NHS Trust,16/01/19,NURSE - BAND 2 - AGENCY,H&B Comm Hosp North Ward,HCL NURSING,MAN29177,2881.47
Department of Health,Leicestershire Partnership NHS Trust,16/01/19,NURSE - BAND 5 - AGENCY,H&B Comm Hosp North Ward,HCL NURSING,MAN29177,1087.68
Department of Health,Leicestershire Partnership NHS Trust,16/01/19,NURSE - BAND 2 - AGENCY,Kirby Ward,HCL NURSING,MAN29177,726.90
Department of Health,Leicestershire Partnership NHS Trust,16/01/19,NURSE - BAND 2 - AGENCY,Lough Swithland Ward,HCL NURSING,MAN29177,1170.21
Department of Health,Leicestershire Partnership NHS Trust,16/01/19,NURSE - BAND 5 - AGENCY,Lough Swithland Ward,HCL NURSING,MAN29177,1206.57
Department of Health,Leicestershire Partnership NHS Trust,16/01/19,Nurse - Band 6 -Agency,MHSOP Integrated Care Team,HCL NURSING,MAN29177,1710.05
Department of Health,Leicestershire Partnership NHS Trust,16/01/19,NURSE - BAND 5 - AGENCY,North West ICS,HCL NURSING,MAN29177,1821.24
Department of Health,Leicestershire Partnership NHS Trust,16/01/19,NURSE - BAND 5 - AGENCY,Rutland Ward Nursing,HCL NURSING,MAN29177,172.18
Department of Health,Leicestershire Partnership NHS Trust,16/01/19,NURSE - BAND 5 - AGENCY,South East ICS,HCL NURSING,MAN29177,3509.35
Department of Health,Leicestershire Partnership NHS Trust,16/01/19,NURSE - BAND 2 - AGENCY,St Lukes Stroke Ward,HCL NURSING,MAN29177,753.07
Department of Health,Leicestershire Partnership NHS Trust,16/01/19,NURSE - BAND 5 - AGENCY,St Lukes Stroke Ward,HCL NURSING,MAN29177,1392.27
Department of Health,Leicestershire Partnership NHS Trust,16/01/19,NURSE - BAND 5 - AGENCY,St Lukes Ward 3,HCL NURSING,MAN29177,2836.07
Department of Health,Leicestershire Partnership NHS Trust,16/01/19,NURSE - BAND 2 - AGENCY,Welford Ward,HCL NURSING,MAN29177,930.19
Department of Health,Leicestershire Partnership NHS Trust,16/01/19,NURSE - BAND 5 - AGENCY,West Planned Care  - Charnwood Hub,HCL NURSING,MAN29177,4121.49
Department of Health,Leicestershire Partnership NHS Trust,16/01/19,PropCo Estates Management,St. Luke's Hospital (PROPCO),NHS PROPERTY SERVICES LTD,00000001/H154402,36563.25
Department of Health,Leicestershire Partnership NHS Trust,17/01/19,UHL Facilities Management SLA,Estates Central Invoices To Recharge,UHL NHS TRUST (RWE),L0220614,827106.58
Department of Health,Leicestershire Partnership NHS Trust,17/01/19,Nurse - Band 6 -Agency,Adult City East CMHT - Merlyn Vaz,HCL NURSING,MAN29176,2568.10
Department of Health,Leicestershire Partnership NHS Trust,17/01/19,Nurse - Band 6 -Agency,Adult County Charnwood CMHT - Loughborough Base,HCL NURSING,MAN29176,978.91
Department of Health,Leicestershire Partnership NHS Trust,17/01/19,NURSE - BAND 2 - AGENCY,Agnes Unit Management,HCL NURSING,MAN29176,756.55
Department of Health,Leicestershire Partnership NHS Trust,17/01/19,NURSE - BAND 5 - AGENCY,Agnes Unit Management,HCL NURSING,MAN29176,287.92
Department of Health,Leicestershire Partnership NHS Trust,17/01/19,NURSE - BAND 5 - AGENCY,Ashby Ward (Bradgate Unit),HCL NURSING,MAN29176,266.74
Department of Health,Leicestershire Partnership NHS Trust,17/01/19,NURSE - BAND 5 - AGENCY,Aston Ward (Bradgate Unit),HCL NURSING,MAN29176,370.38
Department of Health,Leicestershire Partnership NHS Trust,17/01/19,NURSE - BAND 2 - AGENCY,Beaumont Ward - Bradgate Unit,HCL NURSING,MAN29176,392.03
Department of Health,Leicestershire Partnership NHS Trust,17/01/19,NURSE - BAND 5 - AGENCY,Beaumont Ward - Bradgate Unit,HCL NURSING,MAN29176,329.81
Department of Health,Leicestershire Partnership NHS Trust,17/01/19,NURSE - BAND 2 - AGENCY,Belvoir Psychiatric Intensive Care Unit,HCL NURSING,MAN29176,1022.12
Department of Health,Leicestershire Partnership NHS Trust,17/01/19,NURSE - BAND 5 - AGENCY,Belvoir Psychiatric Intensive Care Unit,HCL NURSING,MAN29176,1081.18
Department of Health,Leicestershire Partnership NHS Trust,17/01/19,NURSE - BAND 2 - AGENCY,Bosworth Ward - Bradgate Unit,HCL NURSING,MAN29176,223.60
Department of Health,Leicestershire Partnership NHS Trust,17/01/19,NURSE - BAND 5 - AGENCY,Bosworth Ward - Bradgate Unit,HCL NURSING,MAN29176,426.69
Department of Health,Leicestershire Partnership NHS Trust,17/01/19,NURSE - BAND 5 - AGENCY,Crisis Resolution,HCL NURSING,MAN29176,64.75
Department of Health,Leicestershire Partnership NHS Trust,17/01/19,Nurse - Band 6 -Agency,Crisis Resolution,HCL NURSING,MAN29176,3949.54
Department of Health,Leicestershire Partnership NHS Trust,17/01/19,Nurse - Band 6 -Agency,Deliberate Self Harm,HCL NURSING,MAN29176,2010.68
Department of Health,Leicestershire Partnership NHS Trust,17/01/19,NURSE - BAND 5 - AGENCY,Griffin Ward (HPC),HCL NURSING,MAN29176,3291.36
Department of Health,Leicestershire Partnership NHS Trust,17/01/19,NURSE - BAND 2 - AGENCY,Heather Ward,HCL NURSING,MAN29176,755.54
Department of Health,Leicestershire Partnership NHS Trust,17/01/19,NURSE - BAND 5 - AGENCY,Heather Ward,HCL NURSING,MAN29176,1118.97
Department of Health,Leicestershire Partnership NHS Trust,17/01/19,Nurse - Band 6 -Agency,Liason Psychiatry Service,HCL NURSING,MAN29176,641.93
Department of Health,Leicestershire Partnership NHS Trust,17/01/19,NURSE - BAND 2 - AGENCY,Maple Ward,HCL NURSING,MAN29176,109.19
Department of Health,Leicestershire Partnership NHS Trust,17/01/19,Nurse - Band 6 -Agency,Mental Health Triage Team,HCL NURSING,MAN29176,1745.97
Department of Health,Leicestershire Partnership NHS Trust,17/01/19,NURSE - BAND 2 - AGENCY,Mill Lodge,HCL NURSING,MAN29176,232.37
Department of Health,Leicestershire Partnership NHS Trust,17/01/19,NURSE - BAND 2 - AGENCY,Phoenix Ward (HPC),HCL NURSING,MAN29176,992.69
Department of Health,Leicestershire Partnership NHS Trust,17/01/19,NURSE - BAND 2 - AGENCY,Watermead Ward (Bradgate Unit),HCL NURSING,MAN29176,576.39
Department of Health,Leicestershire Partnership NHS Trust,17/01/19,NURSE - BAND 5 - AGENCY,Watermead Ward (Bradgate Unit),HCL NURSING,MAN29176,1030.01
Department of Health,Leicestershire Partnership NHS Trust,18/01/19,Internal Printing (machines and ink),Unallocated Budgets,LEXMARK INTERNATIONAL LTD,900650005498,36560.66
Department of Health,Leicestershire Partnership NHS Trust,21/01/19,Crs_NHS_LT1y -Resus Inventory Supplied.,Balance Sheet Collection,NHS SUPPLY CHAIN (ST1450),1019206640,45694.19
Department of Health,Leicestershire Partnership NHS Trust,22/01/19,Leased / Hired Vehicles,Adult County South Leicestershire CMHT,AUTOMOTIVE LEASING LTD,504205911,31.00
Department of Health,Leicestershire Partnership NHS Trust,22/01/19,Leased / Hired Vehicles,Autism,AUTOMOTIVE LEASING LTD,504205911,638.96
Department of Health,Leicestershire Partnership NHS Trust,22/01/19,Prep_ LT1y -Prepayments Lease Cars,Balance Sheet Collection,AUTOMOTIVE LEASING LTD,504205911,46359.84
Department of Health,Leicestershire Partnership NHS Trust,22/01/19,Trade_Drs_LT1y -Lease Cars Invoicing Contrl Ac.,Balance Sheet Collection,AUTOMOTIVE LEASING LTD,504205911,110.00
Department of Health,Leicestershire Partnership NHS Trust,22/01/19,Leased / Hired Vehicles,City Central Leic HV Area 1,AUTOMOTIVE LEASING LTD,504205911,168.51
Department of Health,Leicestershire Partnership NHS Trust,22/01/19,Leased / Hired Vehicles,City Community Therapy,AUTOMOTIVE LEASING LTD,504205911,275.00
Department of Health,Leicestershire Partnership NHS Trust,22/01/19,Leased / Hired Vehicles,City East Cluster SN Area 6,AUTOMOTIVE LEASING LTD,504205911,54.00
Department of Health,Leicestershire Partnership NHS Trust,22/01/19,Leased / Hired Vehicles,City ICS,AUTOMOTIVE LEASING LTD,504205911,37.80
Department of Health,Leicestershire Partnership NHS Trust,22/01/19,Leased / Hired Vehicles,HIS,AUTOMOTIVE LEASING LTD,504205911,508.96
Department of Health,Leicestershire Partnership NHS Trust,22/01/19,Leased / Hired Vehicles,North West ICS,AUTOMOTIVE LEASING LTD,504205911,328.12
Department of Health,Leicestershire Partnership NHS Trust,22/01/19,Leased / Hired Vehicles,Productive Ward,AUTOMOTIVE LEASING LTD,504205911,222.46
Department of Health,Leicestershire Partnership NHS Trust,22/01/19,Leased / Hired Vehicles,West Planned Care  - Charnwood Hub,AUTOMOTIVE LEASING LTD,504205911,371.66
Department of Health,Leicestershire Partnership NHS Trust,22/01/19,Leased / Hired Vehicles,West Planned Care  - Hinckley Hub,AUTOMOTIVE LEASING LTD,504205911,64.22
Department of Health,Leicestershire Partnership NHS Trust,22/01/19,Landline Telephone Rental / Calls,"Beaumont Leys Health Centre (P94, LPT)",VIRGIN MEDIA BUSINESS,853083001/004/0119,375.50
Department of Health,Leicestershire Partnership NHS Trust,22/01/19,Landline Telephone Rental / Calls,Belgrave Health Centre (CHP),VIRGIN MEDIA BUSINESS,853083001/004/0119,368.36
Department of Health,Leicestershire Partnership NHS Trust,22/01/19,Landline Telephone Rental / Calls,"Bennion Centre (including Forest Grange Day Unit) (P8, LPT)",VIRGIN MEDIA BUSINESS,853083001/004/0119,7.74
Department of Health,Leicestershire Partnership NHS Trust,22/01/19,Landline Telephone Rental / Calls,"Bradgate Unit (including Glenvale day Unit) (P7, LPT)",VIRGIN MEDIA BUSINESS,853083001/004/0119,7083.42
Department of Health,Leicestershire Partnership NHS Trust,22/01/19,Landline Telephone Rental / Calls,Braunstone Health and Social Care Centre (Part) (PROPCO),VIRGIN MEDIA BUSINESS,853083001/004/0119,1630.12
Department of Health,Leicestershire Partnership NHS Trust,22/01/19,Landline Telephone Rental / Calls,Bridge Park Plaza - First Floor (LPT),VIRGIN MEDIA BUSINESS,853083001/004/0119,3883.71
Department of Health,Leicestershire Partnership NHS Trust,22/01/19,Landline Telephone Rental / Calls,"Coalville Community Hospital (P138, LPT)",VIRGIN MEDIA BUSINESS,853083001/004/0119,1220.75
Department of Health,Leicestershire Partnership NHS Trust,22/01/19,Landline Telephone Rental / Calls,"Coalville Health Centre (P121, LPT)",VIRGIN MEDIA BUSINESS,853083001/004/0119,320.05
Department of Health,Leicestershire Partnership NHS Trust,22/01/19,Landline Telephone Rental / Calls,County Hall,VIRGIN MEDIA BUSINESS,853083001/004/0119,1427.76
Department of Health,Leicestershire Partnership NHS Trust,22/01/19,Landline Telephone Rental / Calls,Estates & Facilities Central,VIRGIN MEDIA BUSINESS,853083001/004/0119,4497.80
Department of Health,Leicestershire Partnership NHS Trust,22/01/19,Landline Telephone Rental / Calls,"Evington Centre (P6, LPT)",VIRGIN MEDIA BUSINESS,853083001/004/0119,1529.77
Department of Health,Leicestershire Partnership NHS Trust,22/01/19,Landline Telephone Rental / Calls,HIS,VIRGIN MEDIA BUSINESS,853083001/004/0119,2676.37
Department of Health,Leicestershire Partnership NHS Trust,22/01/19,Landline Telephone Rental / Calls,"Hawthorne Centre - Coalville (P14, LPT)",VIRGIN MEDIA BUSINESS,853083001/004/0119,474.66
Department of Health,Leicestershire Partnership NHS Trust,22/01/19,Landline Telephone Rental / Calls,Hinckley & District Hospital (PROPCO),VIRGIN MEDIA BUSINESS,853083001/004/0119,1238.72
Department of Health,Leicestershire Partnership NHS Trust,22/01/19,Landline Telephone Rental / Calls,"Hinckley and Bosworth Community Hospital (Sunnyside) (P133, LPT)",VIRGIN MEDIA BUSINESS,853083001/004/0119,1034.90
Department of Health,Leicestershire Partnership NHS Trust,22/01/19,Landline Telephone Rental / Calls,Hood Park Leisure Centre Clinic,VIRGIN MEDIA BUSINESS,853083001/004/0119,58.31
Department of Health,Leicestershire Partnership NHS Trust,22/01/19,Landline Telephone Rental / Calls,"Hynca Lodge (P33, LPT)",VIRGIN MEDIA BUSINESS,853083001/004/0119,355.25
Department of Health,Leicestershire Partnership NHS Trust,22/01/19,Landline Telephone Rental / Calls,"Legion House, Ashby",VIRGIN MEDIA BUSINESS,853083001/004/0119,48.61
Department of Health,Leicestershire Partnership NHS Trust,22/01/19,Landline Telephone Rental / Calls,Loughborough Health Centre (PROPCO),VIRGIN MEDIA BUSINESS,853083001/004/0119,8.74
Department of Health,Leicestershire Partnership NHS Trust,22/01/19,Landline Telephone Rental / Calls,"Loughborough Hospital (P136, LPT)",VIRGIN MEDIA BUSINESS,853083001/004/0119,4150.57
Department of Health,Leicestershire Partnership NHS Trust,22/01/19,Landline Telephone Rental / Calls,Mawson House (LPT),VIRGIN MEDIA BUSINESS,853083001/004/0119,454.55
Department of Health,Leicestershire Partnership NHS Trust,22/01/19,Landline Telephone Rental / Calls,Melbourne Centre (Pt Grnd flr) (PROPCO),VIRGIN MEDIA BUSINESS,853083001/004/0119,6.45
Department of Health,Leicestershire Partnership NHS Trust,22/01/19,Landline Telephone Rental / Calls,Melton Mowbray Hospital (previously St. Mary's) (PROPCO),VIRGIN MEDIA BUSINESS,853083001/004/0119,1140.54
Department of Health,Leicestershire Partnership NHS Trust,22/01/19,Landline Telephone Rental / Calls,Merlyn Vaz Centre (CHP),VIRGIN MEDIA BUSINESS,853083001/004/0119,1997.82
Department of Health,Leicestershire Partnership NHS Trust,22/01/19,Landline Telephone Rental / Calls,"Mett Centre (P49, LPT)",VIRGIN MEDIA BUSINESS,853083001/004/0119,87.14
Department of Health,Leicestershire Partnership NHS Trust,22/01/19,Landline Telephone Rental / Calls,NSPCC Training Cente,VIRGIN MEDIA BUSINESS,853083001/004/0119,176.38
Department of Health,Leicestershire Partnership NHS Trust,22/01/19,Landline Telephone Rental / Calls,New Parks Health Centre (PROPCO),VIRGIN MEDIA BUSINESS,853083001/004/0119,2392.68
Department of Health,Leicestershire Partnership NHS Trust,22/01/19,Landline Telephone Rental / Calls,"OSL House (P54, LPT)",VIRGIN MEDIA BUSINESS,853083001/004/0119,3114.67
Department of Health,Leicestershire Partnership NHS Trust,22/01/19,Landline Telephone Rental / Calls,"Orchard Resource Centre (P15, LPT)",VIRGIN MEDIA BUSINESS,853083001/004/0119,493.50
Department of Health,Leicestershire Partnership NHS Trust,22/01/19,Landline Telephone Rental / Calls,Pasley Road Health Centre (PROPCO),VIRGIN MEDIA BUSINESS,853083001/004/0119,242.77
Department of Health,Leicestershire Partnership NHS Trust,22/01/19,Landline Telephone Rental / Calls,"Prince Philip House (P96, LPT)",VIRGIN MEDIA BUSINESS,853083001/004/0119,1626.22
Department of Health,Leicestershire Partnership NHS Trust,22/01/19,Landline Telephone Rental / Calls,Rushey Mead Health Centre (PROPCO),VIRGIN MEDIA BUSINESS,853083001/004/0119,207.80
Department of Health,Leicestershire Partnership NHS Trust,22/01/19,Landline Telephone Rental / Calls,"Shepshed Health Centre (P123, LPT)",VIRGIN MEDIA BUSINESS,853083001/004/0119,12.37
Department of Health,Leicestershire Partnership NHS Trust,22/01/19,Landline Telephone Rental / Calls,"Springfield Road Health Centre (P92, LPT)",VIRGIN MEDIA BUSINESS,853083001/004/0119,371.08
Department of Health,Leicestershire Partnership NHS Trust,22/01/19,Landline Telephone Rental / Calls,St Johns House (1st Floor) (PROPCO),VIRGIN MEDIA BUSINESS,853083001/004/0119,1522.95
Department of Health,Leicestershire Partnership NHS Trust,22/01/19,Landline Telephone Rental / Calls,St Peters Primary Care Centre (CHP),VIRGIN MEDIA BUSINESS,853083001/004/0119,2520.15
Department of Health,Leicestershire Partnership NHS Trust,22/01/19,Landline Telephone Rental / Calls,"Stewart House (P61, LPT)",VIRGIN MEDIA BUSINESS,853083001/004/0119,7.74
Department of Health,Leicestershire Partnership NHS Trust,22/01/19,Landline Telephone Rental / Calls,"Swithland House - London Road 352 (P44, LPT)",VIRGIN MEDIA BUSINESS,853083001/004/0119,346.06
Department of Health,Leicestershire Partnership NHS Trust,22/01/19,Landline Telephone Rental / Calls,"The Cedars (P19, LPT)",VIRGIN MEDIA BUSINESS,853083001/004/0119,606.13
Department of Health,Leicestershire Partnership NHS Trust,22/01/19,Landline Telephone Rental / Calls,"The Willows - Cordelia Close (P22, LPT)",VIRGIN MEDIA BUSINESS,853083001/004/0119,428.67
Department of Health,Leicestershire Partnership NHS Trust,22/01/19,Landline Telephone Rental / Calls,Uppingham Road Health Centre (PROPCO),VIRGIN MEDIA BUSINESS,853083001/004/0119,236.98
Department of Health,Leicestershire Partnership NHS Trust,22/01/19,Landline Telephone Rental / Calls,"Valentine Centre (P3, LPT)",VIRGIN MEDIA BUSINESS,853083001/004/0119,1545.28
Department of Health,Leicestershire Partnership NHS Trust,22/01/19,Landline Telephone Rental / Calls,Warren Park Way 25 (PROPCO),VIRGIN MEDIA BUSINESS,853083001/004/0119,912.70
Department of Health,Leicestershire Partnership NHS Trust,22/01/19,Landline Telephone Rental / Calls,"Westcotes Group -Westcotes House (P78, LPT)",VIRGIN MEDIA BUSINESS,853083001/004/0119,1302.93
Department of Health,Leicestershire Partnership NHS Trust,22/01/19,Landline Telephone Rental / Calls,Westcotes Health Centre (CHP),VIRGIN MEDIA BUSINESS,853083001/004/0119,762.64
Department of Health,Leicestershire Partnership NHS Trust,22/01/19,Landline Telephone Rental / Calls,"Winstanley Drive Health Centre (P8, LPT)",VIRGIN MEDIA BUSINESS,853083001/004/0119,414.98
Department of Health,Leicestershire Partnership NHS Trust,22/01/19,Rent,"St Peters Health Center (Part 1st and 2nd floors) (P66, LPT)",LEICESTER LIFT CO,LEP1/SI0110,26127.54
Department of Health,Leicestershire Partnership NHS Trust,22/01/19,Rent,"St Peters Health Center (Part 1st and 2nd floors) (P66, LPT)",LEICESTER LIFT CO,LEP1/S0237,26127.54
Department of Health,Leicestershire Partnership NHS Trust,22/01/19,Water & Sewerage Charges,"Beaumont Leys Health Centre (P94, LPT)",WATER PLUS,08650005329/INV02049036,1762.77
Department of Health,Leicestershire Partnership NHS Trust,22/01/19,Water & Sewerage Charges,Bridge Park Road (Unit C18) (LPT),WATER PLUS,08650005329/INV02049036,42.47
Department of Health,Leicestershire Partnership NHS Trust,22/01/19,Water & Sewerage Charges,"Bridge Park Road - Units 2 and 3 (P148, LPT)",WATER PLUS,08650005329/INV02049036,1818.89
Department of Health,Leicestershire Partnership NHS Trust,22/01/19,Water & Sewerage Charges,"Coalville Community Hospital (P138, LPT)",WATER PLUS,08650005329/INV02049036,914.97
Department of Health,Leicestershire Partnership NHS Trust,22/01/19,Water & Sewerage Charges,"Coalville Health Centre (P121, LPT)",WATER PLUS,08650005329/INV02049036,176.27
Department of Health,Leicestershire Partnership NHS Trust,22/01/19,Water & Sewerage Charges,"Evington Centre (P6, LPT)",WATER PLUS,08650005329/INV02049036,1628.92
Department of Health,Leicestershire Partnership NHS Trust,22/01/19,Water & Sewerage Charges,"Feilding Palmer Hospital (Lutterworth) (P131, LPT)",WATER PLUS,08650005329/INV02049036,56.97
Department of Health,Leicestershire Partnership NHS Trust,22/01/19,Water & Sewerage Charges,HIS,WATER PLUS,08650005329/INV02049036,58.60
Department of Health,Leicestershire Partnership NHS Trust,22/01/19,Water & Sewerage Charges,Hinckley & District Hospital (PROPCO),WATER PLUS,08650005329/INV02049036,67.43
Department of Health,Leicestershire Partnership NHS Trust,22/01/19,Water & Sewerage Charges,"Hinckley and Bosworth Community Hospital (Sunnyside) (P133, LPT)",WATER PLUS,08650005329/INV02049036,1698.85
Department of Health,Leicestershire Partnership NHS Trust,22/01/19,Water & Sewerage Charges,"Hynca Lodge (P33, LPT)",WATER PLUS,08650005329/INV02049036,201.17
Department of Health,Leicestershire Partnership NHS Trust,22/01/19,Water & Sewerage Charges,"Loughborough Hospital (P136, LPT)",WATER PLUS,08650005329/INV02049036,3412.16
Department of Health,Leicestershire Partnership NHS Trust,22/01/19,Water & Sewerage Charges,"Narborough Health Centre (P117, LPT)",WATER PLUS,08650005329/INV02049036,20094.53
Department of Health,Leicestershire Partnership NHS Trust,22/01/19,Water & Sewerage Charges,"OSL House (P54, LPT)",WATER PLUS,08650005329/INV02049036,328.04
Department of Health,Leicestershire Partnership NHS Trust,22/01/19,Water & Sewerage Charges,"Orchard Resource Centre (P15, LPT)",WATER PLUS,08650005329/INV02049036,370.12
Department of Health,Leicestershire Partnership NHS Trust,22/01/19,Water & Sewerage Charges,"Paget House (P55, LPT)",WATER PLUS,08650005329/INV02049036,58.31
Department of Health,Leicestershire Partnership NHS Trust,22/01/19,Water & Sewerage Charges,"Prince Philip House (P96, LPT)",WATER PLUS,08650005329/INV02049036,197.74
Department of Health,Leicestershire Partnership NHS Trust,22/01/19,Water & Sewerage Charges,"Rubicon Close 3 (P56, LPT)",WATER PLUS,08650005329/INV02049036,90.40
Department of Health,Leicestershire Partnership NHS Trust,22/01/19,Water & Sewerage Charges,"Rutland Memorial Hospital (P134, LPT)",WATER PLUS,08650005329/INV02049036,278.78
Department of Health,Leicestershire Partnership NHS Trust,22/01/19,Water & Sewerage Charges,"Shepshed Health Centre (P123, LPT)",WATER PLUS,08650005329/INV02049036,279.58
Department of Health,Leicestershire Partnership NHS Trust,22/01/19,Water & Sewerage Charges,"Springfield Road Health Centre (P92, LPT)",WATER PLUS,08650005329/INV02049036,257.33
Department of Health,Leicestershire Partnership NHS Trust,22/01/19,Water & Sewerage Charges,"Stewart House (P61, LPT)",WATER PLUS,08650005329/INV02049036,819.17
Department of Health,Leicestershire Partnership NHS Trust,22/01/19,Water & Sewerage Charges,"Swithland House - London Road 352 (P44, LPT)",WATER PLUS,08650005329/INV02049036,354.81
Department of Health,Leicestershire Partnership NHS Trust,22/01/19,Water & Sewerage Charges,"The Agnes Unit (AKA Assessment and Treatment Centre) (P85, LPT)",WATER PLUS,08650005329/INV02049036,649.79
Department of Health,Leicestershire Partnership NHS Trust,22/01/19,Water & Sewerage Charges,"The Cedars (P19, LPT)",WATER PLUS,08650005329/INV02049036,93.67
Department of Health,Leicestershire Partnership NHS Trust,22/01/19,Water & Sewerage Charges,"The Grange 2 (P41, LPT)",WATER PLUS,08650005329/INV02049036,158.02
Department of Health,Leicestershire Partnership NHS Trust,22/01/19,Water & Sewerage Charges,"The Willows - Cordelia Close (P22, LPT)",WATER PLUS,08650005329/INV02049036,1410.25
Department of Health,Leicestershire Partnership NHS Trust,22/01/19,Water & Sewerage Charges,"Westcotes Group -Westcotes House (P78, LPT)",WATER PLUS,08650005329/INV02049036,2040.52
Department of Health,Leicestershire Partnership NHS Trust,22/01/19,WIP Project Not in BS - Information Technology,Work in Progress,ASSOCIATED NETWORK SOLUTIONS,INV058138,100947.64
Department of Health,Leicestershire Partnership NHS Trust,23/01/19,Course / Training Expenses,Work Force Transformation,UHL NHS TRUST (RWE),L0220725,36750.00
Department of Health,Leicestershire Partnership NHS Trust,23/01/19,NURSE - BAND 2 - AGENCY,Beechwood Ward,HCL NURSING,MAN29201,854.25
Department of Health,Leicestershire Partnership NHS Trust,23/01/19,Nurse - Band 6 -Agency,City East CMHT MHSOP,HCL NURSING,MAN29201,836.93
Department of Health,Leicestershire Partnership NHS Trust,23/01/19,NURSE - BAND 5 - AGENCY,City ICS,HCL NURSING,MAN29201,1567.50
Department of Health,Leicestershire Partnership NHS Trust,23/01/19,NURSE - BAND 5 - AGENCY,City Planned Care - East,HCL NURSING,MAN29201,14046.80
Department of Health,Leicestershire Partnership NHS Trust,23/01/19,NURSE - BAND 5 - AGENCY,City Planned Care - West,HCL NURSING,MAN29201,4748.96
Department of Health,Leicestershire Partnership NHS Trust,23/01/19,NURSE - BAND 2 - AGENCY,Clarendon Ward,HCL NURSING,MAN29201,614.77
Department of Health,Leicestershire Partnership NHS Trust,23/01/19,NURSE - BAND 5 - AGENCY,Clarendon Ward,HCL NURSING,MAN29201,1211.42
Department of Health,Leicestershire Partnership NHS Trust,23/01/19,NURSE - BAND 2 - AGENCY,Coalville Snibston Ward,HCL NURSING,MAN29201,1157.98
Department of Health,Leicestershire Partnership NHS Trust,23/01/19,NURSE - BAND 2 - AGENCY,Coalville Ward 2,HCL NURSING,MAN29201,211.93
Department of Health,Leicestershire Partnership NHS Trust,23/01/19,NURSE - BAND 2 - AGENCY,Coleman Ward,HCL NURSING,MAN29201,392.76
Department of Health,Leicestershire Partnership NHS Trust,23/01/19,NURSE - BAND 2 - AGENCY,Dalgliesh Ward,HCL NURSING,MAN29201,642.80
Department of Health,Leicestershire Partnership NHS Trust,23/01/19,NURSE - BAND 3 - AGENCY,East Planned Care - Blaby/Lutterworth,HCL NURSING,MAN29201,1574.40
Department of Health,Leicestershire Partnership NHS Trust,23/01/19,NURSE - BAND 5 - AGENCY,"East Planned Care - Oadby,Wigston & Harborough",HCL NURSING,MAN29201,1042.54
Department of Health,Leicestershire Partnership NHS Trust,23/01/19,NURSE - BAND 5 - AGENCY,Evening Service,HCL NURSING,MAN29201,1145.96
Department of Health,Leicestershire Partnership NHS Trust,23/01/19,NURSE - BAND 2 - AGENCY,Fielding Palmer Nursing,HCL NURSING,MAN29201,106.77
Department of Health,Leicestershire Partnership NHS Trust,23/01/19,NURSE - BAND 5 - AGENCY,Fielding Palmer Nursing,HCL NURSING,MAN29201,2028.80
Department of Health,Leicestershire Partnership NHS Trust,23/01/19,NURSE - BAND 2 - AGENCY,Gwendolen Ward,HCL NURSING,MAN29201,1730.83
Department of Health,Leicestershire Partnership NHS Trust,23/01/19,NURSE - BAND 5 - AGENCY,Gwendolen Ward,HCL NURSING,MAN29201,302.58
Department of Health,Leicestershire Partnership NHS Trust,23/01/19,NURSE - BAND 2 - AGENCY,H&B Comm Hosp East Ward,HCL NURSING,MAN29201,1369.54
Department of Health,Leicestershire Partnership NHS Trust,23/01/19,NURSE - BAND 5 - AGENCY,H&B Comm Hosp East Ward,HCL NURSING,MAN29201,406.23
Department of Health,Leicestershire Partnership NHS Trust,23/01/19,NURSE - BAND 2 - AGENCY,H&B Comm Hosp North Ward,HCL NURSING,MAN29201,106.77
Department of Health,Leicestershire Partnership NHS Trust,23/01/19,NURSE - BAND 5 - AGENCY,H&B Comm Hosp North Ward,HCL NURSING,MAN29201,386.06
Department of Health,Leicestershire Partnership NHS Trust,23/01/19,NURSE - BAND 2 - AGENCY,Kirby Ward,HCL NURSING,MAN29201,676.50
Department of Health,Leicestershire Partnership NHS Trust,23/01/19,NURSE - BAND 2 - AGENCY,Lough Swithland Ward,HCL NURSING,MAN29201,670.43
Department of Health,Leicestershire Partnership NHS Trust,23/01/19,NURSE - BAND 5 - AGENCY,Lough Swithland Ward,HCL NURSING,MAN29201,772.13
Department of Health,Leicestershire Partnership NHS Trust,23/01/19,NURSE - BAND 5 - AGENCY,North East ICS,HCL NURSING,MAN29201,874.61
Department of Health,Leicestershire Partnership NHS Trust,23/01/19,NURSE - BAND 5 - AGENCY,North West ICS,HCL NURSING,MAN29201,1067.93
Department of Health,Leicestershire Partnership NHS Trust,23/01/19,NURSE - BAND 2 - AGENCY,Rutland Ward Nursing,HCL NURSING,MAN29201,223.60
Department of Health,Leicestershire Partnership NHS Trust,23/01/19,NURSE - BAND 5 - AGENCY,South East ICS,HCL NURSING,MAN29201,3185.34
Department of Health,Leicestershire Partnership NHS Trust,23/01/19,NURSE - BAND 2 - AGENCY,St Lukes Stroke Ward,HCL NURSING,MAN29201,462.06
Department of Health,Leicestershire Partnership NHS Trust,23/01/19,NURSE - BAND 5 - AGENCY,St Lukes Stroke Ward,HCL NURSING,MAN29201,320.14
Department of Health,Leicestershire Partnership NHS Trust,23/01/19,NURSE - BAND 5 - AGENCY,St Lukes Ward 3,HCL NURSING,MAN29201,3088.88
Department of Health,Leicestershire Partnership NHS Trust,23/01/19,NURSE - BAND 5 - AGENCY,Welford Ward,HCL NURSING,MAN29201,302.58
Department of Health,Leicestershire Partnership NHS Trust,23/01/19,NURSE - BAND 5 - AGENCY,West Planned Care  - Charnwood Hub,HCL NURSING,MAN29201,2795.99
Department of Health,Leicestershire Partnership NHS Trust,23/01/19,PropCo Estates Management,St. Luke's Hospital (PROPCO),NHS PROPERTY SERVICES LTD,00000001/H154407,47500.00
Department of Health,Leicestershire Partnership NHS Trust,23/01/19,PropCo Estates Management,St. Luke's Hospital (PROPCO),NHS PROPERTY SERVICES LTD,00000001/H154556,28166.65
Department of Health,Leicestershire Partnership NHS Trust,23/01/19,PropCo Estates Management,Melton Mowbray Hospital (previously St. Mary's) (PROPCO),NHS PROPERTY SERVICES LTD,00000001/H154544,61225.46
Department of Health,Leicestershire Partnership NHS Trust,23/01/19,PropCo Estates Management,Melton Mowbray Hospital (previously St. Mary's) (PROPCO),NHS PROPERTY SERVICES LTD,00000001/H154416,41498.93
Department of Health,Leicestershire Partnership NHS Trust,24/01/19,PropCo Estates Management,Melton Mowbray Hospital (previously St. Mary's) (PROPCO),NHS PROPERTY SERVICES LTD,00000001/H154542,32575.11
Department of Health,Leicestershire Partnership NHS Trust,24/01/19,PropCo Estates Management,Charnwood Mill (PROPCO),NHS PROPERTY SERVICES LTD,00000001/H154398,30494.67
Department of Health,Leicestershire Partnership NHS Trust,24/01/19,Leased / Hired Vehicles,Adult City East CMHT - Merlyn Vaz,AUTOMOTIVE LEASING LTD,504882551,379.00
Department of Health,Leicestershire Partnership NHS Trust,24/01/19,Leased / Hired Vehicles,Autism,AUTOMOTIVE LEASING LTD,504882551,638.96
Department of Health,Leicestershire Partnership NHS Trust,24/01/19,Prep_ LT1y -Prepayments Lease Cars,Balance Sheet Collection,AUTOMOTIVE LEASING LTD,504882551,42435.39
Department of Health,Leicestershire Partnership NHS Trust,24/01/19,Trade_Drs_LT1y -Charitable  Funds Contra Account,Balance Sheet Collection,AUTOMOTIVE LEASING LTD,504882551,10.00
Department of Health,Leicestershire Partnership NHS Trust,24/01/19,Trade_Drs_LT1y -Lease Cars Invoicing Contrl Ac.,Balance Sheet Collection,AUTOMOTIVE LEASING LTD,504882551,1365.84
Department of Health,Leicestershire Partnership NHS Trust,24/01/19,Leased / Hired Vehicles,CHS Community Management,AUTOMOTIVE LEASING LTD,504882551,10.00
Department of Health,Leicestershire Partnership NHS Trust,24/01/19,Leased / Hired Vehicles,Children�s Community Phlebotomy,AUTOMOTIVE LEASING LTD,504882551,168.51
Department of Health,Leicestershire Partnership NHS Trust,24/01/19,Leased / Hired Vehicles,City ICS,AUTOMOTIVE LEASING LTD,504882551,581.30
Department of Health,Leicestershire Partnership NHS Trust,24/01/19,Leased / Hired Vehicles,City North Leic HV Area 5,AUTOMOTIVE LEASING LTD,504882551,136.00
Department of Health,Leicestershire Partnership NHS Trust,24/01/19,Leased / Hired Vehicles,Crisis Resolution,AUTOMOTIVE LEASING LTD,504882551,37.00
Department of Health,Leicestershire Partnership NHS Trust,24/01/19,Leased / Hired Vehicles,East Planned Care - Blaby/Lutterworth,AUTOMOTIVE LEASING LTD,504882551,10.00
Department of Health,Leicestershire Partnership NHS Trust,24/01/19,Leased / Hired Vehicles,Mill Lodge,AUTOMOTIVE LEASING LTD,504882551,299.12
Department of Health,Leicestershire Partnership NHS Trust,24/01/19,Leased / Hired Vehicles,Neuro/Stroke Rehab Service,AUTOMOTIVE LEASING LTD,504882551,393.18
Department of Health,Leicestershire Partnership NHS Trust,24/01/19,Leased / Hired Vehicles,Pharmacy,AUTOMOTIVE LEASING LTD,504882551,140.00
Department of Health,Leicestershire Partnership NHS Trust,24/01/19,Leased / Hired Vehicles,School Age Immunisation and Vaccinations,AUTOMOTIVE LEASING LTD,504882551,323.40
Department of Health,Leicestershire Partnership NHS Trust,24/01/19,Leased / Hired Vehicles,South East ICS,AUTOMOTIVE LEASING LTD,504882551,10.00
Department of Health,Leicestershire Partnership NHS Trust,24/01/19,Leased / Hired Vehicles,South West ICS,AUTOMOTIVE LEASING LTD,504882551,54.00
Department of Health,Leicestershire Partnership NHS Trust,24/01/19,Leased / Hired Vehicles,Support Services (Learn Dis),AUTOMOTIVE LEASING LTD,504882551,60.00
Department of Health,Leicestershire Partnership NHS Trust,24/01/19,Med GP Trainees,Medical Trainees,ST.HELENS & KNOWSLEY NHS TRUST,16781602,60000.00
Department of Health,Leicestershire Partnership NHS Trust,28/01/19,Crs_NHS_LT1y -Resus Inventory Supplied.,Balance Sheet Collection,NHS SUPPLY CHAIN (ST1450),1019212136,32286.74
Department of Health,Leicestershire Partnership NHS Trust,28/01/19,Nurse - Band 6 -Agency,Adult City East CMHT - Merlyn Vaz,HCL NURSING,MAN29240,209.23
Department of Health,Leicestershire Partnership NHS Trust,28/01/19,Nurse - Band 6 -Agency,Adult County Charnwood CMHT - Loughborough Base,HCL NURSING,MAN29240,1557.36
Department of Health,Leicestershire Partnership NHS Trust,28/01/19,Nurse - Band 6 -Agency,Adult County North West Leicestershire CMHT,HCL NURSING,MAN29240,1283.85
Department of Health,Leicestershire Partnership NHS Trust,28/01/19,NURSE - BAND 2 - AGENCY,Agnes Unit Management,HCL NURSING,MAN29240,507.54
Department of Health,Leicestershire Partnership NHS Trust,28/01/19,NURSE - BAND 5 - AGENCY,Agnes Unit Management,HCL NURSING,MAN29240,1240.73
Department of Health,Leicestershire Partnership NHS Trust,28/01/19,NURSE - BAND 2 - AGENCY,Ashby Ward (Bradgate Unit),HCL NURSING,MAN29240,211.12
Department of Health,Leicestershire Partnership NHS Trust,28/01/19,NURSE - BAND 2 - AGENCY,Aston Ward (Bradgate Unit),HCL NURSING,MAN29240,211.93
Department of Health,Leicestershire Partnership NHS Trust,28/01/19,NURSE - BAND 5 - AGENCY,Aston Ward (Bradgate Unit),HCL NURSING,MAN29240,1955.07
Department of Health,Leicestershire Partnership NHS Trust,28/01/19,NURSE - BAND 2 - AGENCY,Beaumont Ward - Bradgate Unit,HCL NURSING,MAN29240,168.41
Department of Health,Leicestershire Partnership NHS Trust,28/01/19,NURSE - BAND 2 - AGENCY,Belvoir Psychiatric Intensive Care Unit,HCL NURSING,MAN29240,1731.18
Department of Health,Leicestershire Partnership NHS Trust,28/01/19,NURSE - BAND 5 - AGENCY,Belvoir Psychiatric Intensive Care Unit,HCL NURSING,MAN29240,370.38
Department of Health,Leicestershire Partnership NHS Trust,28/01/19,NURSE - BAND 5 - AGENCY,Bosworth Ward - Bradgate Unit,HCL NURSING,MAN29240,676.53
Department of Health,Leicestershire Partnership NHS Trust,28/01/19,Nurse - Band 6 -Agency,Crisis Resolution,HCL NURSING,MAN29240,18020.35
Department of Health,Leicestershire Partnership NHS Trust,28/01/19,Nurse - Band 6 -Agency,Deliberate Self Harm,HCL NURSING,MAN29240,1545.11
Department of Health,Leicestershire Partnership NHS Trust,28/01/19,NURSE - BAND 5 - AGENCY,Griffin Ward (HPC),HCL NURSING,MAN29240,1878.57
Department of Health,Leicestershire Partnership NHS Trust,28/01/19,NURSE - BAND 2 - AGENCY,Heather Ward,HCL NURSING,MAN29240,262.44
Department of Health,Leicestershire Partnership NHS Trust,28/01/19,NURSE - BAND 5 - AGENCY,Heather Ward,HCL NURSING,MAN29240,2317.82
Department of Health,Leicestershire Partnership NHS Trust,28/01/19,Nurse - Band 6 -Agency,Liason Psychiatry Service,HCL NURSING,MAN29240,1069.88
Department of Health,Leicestershire Partnership NHS Trust,28/01/19,Nurse - Band 6 -Agency,Mental Health Triage Team,HCL NURSING,MAN29240,1872.96
Department of Health,Leicestershire Partnership NHS Trust,28/01/19,NURSE - BAND 2 - AGENCY,Mill Lodge,HCL NURSING,MAN29240,176.94
Department of Health,Leicestershire Partnership NHS Trust,28/01/19,NURSE - BAND 5 - AGENCY,Mill Lodge,HCL NURSING,MAN29240,1721.06
Department of Health,Leicestershire Partnership NHS Trust,28/01/19,NURSE - BAND 2 - AGENCY,Phoenix Ward (HPC),HCL NURSING,MAN29240,168.41
Department of Health,Leicestershire Partnership NHS Trust,28/01/19,NURSE - BAND 2 - AGENCY,Stewart House,HCL NURSING,MAN29240,116.19
Department of Health,Leicestershire Partnership NHS Trust,28/01/19,NURSE - BAND 2 - AGENCY,Thornton Ward - Bradgate Unit,HCL NURSING,MAN29240,619.42
Department of Health,Leicestershire Partnership NHS Trust,28/01/19,NURSE - BAND 2 - AGENCY,Watermead Ward (Bradgate Unit),HCL NURSING,MAN29240,168.41
Department of Health,Leicestershire Partnership NHS Trust,28/01/19,NURSE - BAND 5 - AGENCY,Watermead Ward (Bradgate Unit),HCL NURSING,MAN29240,1256.07
Department of Health,Leicestershire Partnership NHS Trust,28/01/19,Drugs,Adult City Drugs,JANSSEN-CILAG LTD,930481251,12493.75
Department of Health,Leicestershire Partnership NHS Trust,28/01/19,Drugs,Adult County Drugs,JANSSEN-CILAG LTD,930481251,18740.63
Department of Health,Leicestershire Partnership NHS Trust,30/01/19,Rent,"Syston Health Centre (New Building) (P127, LPT)",PHIP (5) LIMITED,LINV13982,37500.00
